{"text_format":"1","workbook":"xlsx","n_sheets":4,"sheets":["Produktionsanlæg","Distributionsanlæg","Fællesfunktionsanlæg","Drop downliste"],"not_rendered":{"charts":0,"images":0,"macros":1,"external_links":0,"defined_names":2,"comments":0,"pivot_tables":0},"unopened":[],"bounds":{"document_bytes":16777216,"sheet_cells":100000,"rows_first":2000,"rows_last":500,"rows_between":2000,"halvings":0,"cell_chars":16384,"cell_head_chars":4096},"cells_cut":0,"cells_raw":0,"read":"whole","date_system":"1900"}

{"sheet":"Produktionsanlæg","index":0,"n_rows":563,"n_cols":6,"rows_kept":563,"cut":false,"hidden":false,"merged":[[0,5,1,5],[0,0,1,0],[0,1,1,1],[0,2,1,2]]}
["Produktionsanlæg","Enhed","Standard-levetid"," Samlet mængde per 31/12-2014 ","Samlet mængde per 31/12-2015","Bemærk-ninger"]
[]
["Renseanlæg 1"]
["Mindre renseanlæg"]
["Mindre renseanlæg < 5.000 PE uden mulighed for opdeling","PE",40,4639,4639,"Assens"]
["Renseanlæg >= 5.000 PE, Vandbehandling"]
["Indløb med riste, Konstruktioner","PE",60," -   "]
["Indløb med riste, Mek/EL","PE",20," -   "]
["Indløb med riste, SRO","PE",10," -   "]
["Sand- og fedtfang, Kontruktioner","PE",60," -   "]
["Sand- og fedtfang, Mek/EL","PE",20," -   "]
["Sand- og fedtfang, SRO","PE",10," -   "]
["Forklaring, Konstruktioner","PE",60," -   "]
["Forklaring, Mek/EL","PE",20," -   "]
["Forklaring, SRO","PE",10," -   "]
["Beluftningstanke, Konstruktioner","PE",60," -   "]
["Beluftningstanke, Mek/EL","PE",20," -   "]
["Beluftningstanke, SRO","PE",10," -   "]
["Efterklaringstanke, Konstruktioner","PE",60," -   "]
["Efterklaringstanke, Mek/El","PE",20," -   "]
["Efterklaringstanke, SRO","PE",10," -   "]
["Efterbehandlingsanlæg (sandfilter), Konstruktioner","PE",60," -   "]
["Efterbehandlingsanlæg (sandfilter), Mek/EL","PE",20," -   "]
["Efterbehandlingsanlæg (sandfilter), SRO","PE",10," -   "]
["Renseanlæg >= 5.000 PE, Slambehandling"]
["Forafvanding, slam, Konstruktion","PE",60," -   "]
["Forafvanding, slam, Mek/EL","PE",20," -   "]
["Forafvanding, slam, SRO","PE",10," -   "]
["Rådnetanke, slam, Konstruktioner","PE",60," -   "]
["Rådnetanke, slam, Mek/EL","PE",20," -   "]
["Rådnetanke, slam, SRO","PE",10," -   "]
["Gasdisponering, Konstruktioner","PE",60," -   "]
["Gasdisponering, Mek/EL","PE",20," -   "]
["Gasdisponering, SRO","PE",10," -   "]
["Gasdisponering - elproduktionsanlæg, Konstruktioner","PE",60," -   "]
["Gasdisponering - elproduktionsanlæg, Mek/EL","PE",20," -   "]
["Gasdisponering - elproduktionsanlæg, SRO","PE",10," -   "]
["Slutafvanding, slam - lavteknologisk (slambede), Konstruktioner","PE",60," -   "]
["Slutafvanding, slam - lavteknologisk (slambede), Mek/EL","PE",20," -   "]
["Slutafvanding, slam - lavteknologisk (slambede), SRO","PE",10," -   "]
["Slutafvanding, slam - højteknologisk (centrifuger), Konstruktioner","PE",60," -   "]
["Slutafvanding, slam - højteknologisk (centrifuger), Mek/El","PE",20," -   "]
["Slutafvanding, slam - højteknologisk (centrifuger), SRO","PE",10," -   "]
["Renseanlæg >= 5.000 PE, Slamdisponering"]
["Slutdisponering, slam - lavteknologisk (slammineralisering), Konstruktioner","PE",60," -   "]
["Slutdisponering, slam - lavteknologisk (slammineralisering), Mek/EL","PE",20," -   "]
["Slutdisponering, slam - lavteknologisk (slammineralisering), SRO","PE",10," -   "]
["Slutdisponering, slam - højteknologisk (slamtørring), Konstruktioner","PE",60," -   "]
["Slutdisponering, slam - højteknologisk (slamtørring), Mek/EL","PE",20," -   "]
["Slutdisponering, slam - højteknologisk (slamtørring), SRO","PE",10," -   "]
["Slutdisponering, slam - højteknologisk (slamtørring og -forbrænding), Konstruktioner","PE",60," -   "]
["Slutdisponering, slam - højteknologisk (slamtørring og -forbrænding), Mek/EL","PE",20," -   "]
["Slutdisponering, slam - højteknologisk (slamtørring og -forbrænding), SRO","PE",10," -   "]
["Renseanlæg 2"]
["Mindre renseanlæg"]
["Mindre renseanlæg < 5.000 PE uden mulighed for opdeling","PE",40," -   "]
["Renseanlæg >= 5.000 PE, Vandbehandling",null,null," -   "]
["Indløb med riste, Konstruktioner","PE",60," -   "]
["Indløb med riste, Mek/EL","PE",20," -   "]
["Indløb med riste, SRO","PE",10," -   "]
["Sand- og fedtfang, Kontruktioner","PE",60," -   "]
["Sand- og fedtfang, Mek/EL","PE",20," -   "]
["Sand- og fedtfang, SRO","PE",10," -   "]
["Forklaring, Konstruktioner","PE",60," -   "]
["Forklaring, Mek/EL","PE",20," -   "]
["Forklaring, SRO","PE",10," -   "]
["Beluftningstanke, Konstruktioner","PE",60," -   "]
["Beluftningstanke, Mek/EL","PE",20," -   "]
["Beluftningstanke, SRO","PE",10," -   "]
["Efterklaringstanke, Konstruktioner","PE",60," -   "]
["Efterklaringstanke, Mek/El","PE",20," -   "]
["Efterklaringstanke, SRO","PE",10," -   "]
["Efterbehandlingsanlæg (sandfilter), Konstruktioner","PE",60," -   "]
["Efterbehandlingsanlæg (sandfilter), Mek/EL","PE",20," -   "]
["Efterbehandlingsanlæg (sandfilter), SRO","PE",10," -   "]
["Renseanlæg >= 5.000 PE, Slambehandling",null,null," -   "]
["Forafvanding, slam, Konstruktion","PE",60," -   "]
["Forafvanding, slam, Mek/EL","PE",20," -   "]
["Forafvanding, slam, SRO","PE",10," -   "]
["Rådnetanke, slam, Konstruktioner","PE",60," -   "]
["Rådnetanke, slam, Mek/EL","PE",20," -   "]
["Rådnetanke, slam, SRO","PE",10," -   "]
["Gasdisponering, Konstruktioner","PE",60," -   "]
["Gasdisponering, Mek/EL","PE",20," -   "]
["Gasdisponering, SRO","PE",10," -   "]
["Gasdisponering - elproduktionsanlæg, Konstruktioner","PE",60," -   "]
["Gasdisponering - elproduktionsanlæg, Mek/EL","PE",20," -   "]
["Gasdisponering - elproduktionsanlæg, SRO","PE",10," -   "]
["Slutafvanding, slam - lavteknologisk (slambede), Konstruktioner","PE",60," -   "]
["Slutafvanding, slam - lavteknologisk (slambede), Mek/EL","PE",20," -   "]
["Slutafvanding, slam - lavteknologisk (slambede), SRO","PE",10," -   "]
["Slutafvanding, slam - højteknologisk (centrifuger), Konstruktioner","PE",60," -   "]
["Slutafvanding, slam - højteknologisk (centrifuger), Mek/El","PE",20," -   "]
["Slutafvanding, slam - højteknologisk (centrifuger), SRO","PE",10," -   "]
["Renseanlæg >= 5.000 PE, Slamdisponering",null,null," -   "]
["Slutdisponering, slam - lavteknologisk (slammineralisering), Konstruktioner","PE",60," -   "]
["Slutdisponering, slam - lavteknologisk (slammineralisering), Mek/EL","PE",20," -   "]
["Slutdisponering, slam - lavteknologisk (slammineralisering), SRO","PE",10," -   "]
["Slutdisponering, slam - højteknologisk (slamtørring), Konstruktioner","PE",60," -   "]
["Slutdisponering, slam - højteknologisk (slamtørring), Mek/EL","PE",20," -   "]
["Slutdisponering, slam - højteknologisk (slamtørring), SRO","PE",10," -   "]
["Slutdisponering, slam - højteknologisk (slamtørring og -forbrænding), Konstruktioner","PE",60," -   "]
["Slutdisponering, slam - højteknologisk (slamtørring og -forbrænding), Mek/EL","PE",20," -   "]
["Slutdisponering, slam - højteknologisk (slamtørring og -forbrænding), SRO","PE",10," -   "]
["Renseanlæg 3",null,null," -   "]
["Mindre renseanlæg",null,null," -   "]
["Mindre renseanlæg < 5.000 PE uden mulighed for opdeling","PE",40," -   "]
["Renseanlæg >= 5.000 PE, Vandbehandling",null,null," -   "]
["Indløb med riste, Konstruktioner","PE",60," -   "]
["Indløb med riste, Mek/EL","PE",20," -   "]
["Indløb med riste, SRO","PE",10," -   "]
["Sand- og fedtfang, Kontruktioner","PE",60," -   "]
["Sand- og fedtfang, Mek/EL","PE",20," -   "]
["Sand- og fedtfang, SRO","PE",10," -   "]
["Forklaring, Konstruktioner","PE",60," -   "]
["Forklaring, Mek/EL","PE",20," -   "]
["Forklaring, SRO","PE",10," -   "]
["Beluftningstanke, Konstruktioner","PE",60," -   "]
["Beluftningstanke, Mek/EL","PE",20," -   "]
["Beluftningstanke, SRO","PE",10," -   "]
["Efterklaringstanke, Konstruktioner","PE",60," -   "]
["Efterklaringstanke, Mek/El","PE",20," -   "]
["Efterklaringstanke, SRO","PE",10," -   "]
["Efterbehandlingsanlæg (sandfilter), Konstruktioner","PE",60," -   "]
["Efterbehandlingsanlæg (sandfilter), Mek/EL","PE",20," -   "]
["Efterbehandlingsanlæg (sandfilter), SRO","PE",10," -   "]
["Renseanlæg >= 5.000 PE, Slambehandling",null,null," -   "]
["Forafvanding, slam, Konstruktion","PE",60," -   "]
["Forafvanding, slam, Mek/EL","PE",20," -   "]
["Forafvanding, slam, SRO","PE",10," -   "]
["Rådnetanke, slam, Konstruktioner","PE",60," -   "]
["Rådnetanke, slam, Mek/EL","PE",20," -   "]
["Rådnetanke, slam, SRO","PE",10," -   "]
["Gasdisponering, Konstruktioner","PE",60," -   "]
["Gasdisponering, Mek/EL","PE",20," -   "]
["Gasdisponering, SRO","PE",10," -   "]
["Gasdisponering - elproduktionsanlæg, Konstruktioner","PE",60," -   "]
["Gasdisponering - elproduktionsanlæg, Mek/EL","PE",20," -   "]
["Gasdisponering - elproduktionsanlæg, SRO","PE",10," -   "]
["Slutafvanding, slam - lavteknologisk (slambede), Konstruktioner","PE",60," -   "]
["Slutafvanding, slam - lavteknologisk (slambede), Mek/EL","PE",20," -   "]
["Slutafvanding, slam - lavteknologisk (slambede), SRO","PE",10," -   "]
["Slutafvanding, slam - højteknologisk (centrifuger), Konstruktioner","PE",60," -   "]
["Slutafvanding, slam - højteknologisk (centrifuger), Mek/El","PE",20," -   "]
["Slutafvanding, slam - højteknologisk (centrifuger), SRO","PE",10," -   "]
["Renseanlæg >= 5.000 PE, Slamdisponering",null,null," -   "]
["Slutdisponering, slam - lavteknologisk (slammineralisering), Konstruktioner","PE",60," -   "]
["Slutdisponering, slam - lavteknologisk (slammineralisering), Mek/EL","PE",20," -   "]
["Slutdisponering, slam - lavteknologisk (slammineralisering), SRO","PE",10," -   "]
["Slutdisponering, slam - højteknologisk (slamtørring), Konstruktioner","PE",60," -   "]
["Slutdisponering, slam - højteknologisk (slamtørring), Mek/EL","PE",20," -   "]
["Slutdisponering, slam - højteknologisk (slamtørring), SRO","PE",10," -   "]
["Slutdisponering, slam - højteknologisk (slamtørring og -forbrænding), Konstruktioner","PE",60," -   "]
["Slutdisponering, slam - højteknologisk (slamtørring og -forbrænding), Mek/EL","PE",20," -   "]
["Slutdisponering, slam - højteknologisk (slamtørring og -forbrænding), SRO","PE",10," -   "]
["Renseanlæg 4",null,null," -   "]
["Mindre renseanlæg",null,null," -   "]
["Mindre renseanlæg < 5.000 PE uden mulighed for opdeling","PE",40," -   "]
["Renseanlæg >= 5.000 PE, Vandbehandling",null,null," -   "]
["Indløb med riste, Konstruktioner","PE",60," -   "]
["Indløb med riste, Mek/EL","PE",20," -   "]
["Indløb med riste, SRO","PE",10," -   "]
["Sand- og fedtfang, Kontruktioner","PE",60," -   "]
["Sand- og fedtfang, Mek/EL","PE",20," -   "]
["Sand- og fedtfang, SRO","PE",10," -   "]
["Forklaring, Konstruktioner","PE",60," -   "]
["Forklaring, Mek/EL","PE",20," -   "]
["Forklaring, SRO","PE",10," -   "]
["Beluftningstanke, Konstruktioner","PE",60," -   "]
["Beluftningstanke, Mek/EL","PE",20," -   "]
["Beluftningstanke, SRO","PE",10," -   "]
["Efterklaringstanke, Konstruktioner","PE",60," -   "]
["Efterklaringstanke, Mek/El","PE",20," -   "]
["Efterklaringstanke, SRO","PE",10," -   "]
["Efterbehandlingsanlæg (sandfilter), Konstruktioner","PE",60," -   "]
["Efterbehandlingsanlæg (sandfilter), Mek/EL","PE",20," -   "]
["Efterbehandlingsanlæg (sandfilter), SRO","PE",10," -   "]
["Renseanlæg >= 5.000 PE, Slambehandling",null,null," -   "]
["Forafvanding, slam, Konstruktion","PE",60," -   "]
["Forafvanding, slam, Mek/EL","PE",20," -   "]
["Forafvanding, slam, SRO","PE",10," -   "]
["Rådnetanke, slam, Konstruktioner","PE",60," -   "]
["Rådnetanke, slam, Mek/EL","PE",20," -   "]
["Rådnetanke, slam, SRO","PE",10," -   "]
["Gasdisponering, Konstruktioner","PE",60," -   "]
["Gasdisponering, Mek/EL","PE",20," -   "]
["Gasdisponering, SRO","PE",10," -   "]
["Gasdisponering - elproduktionsanlæg, Konstruktioner","PE",60," -   "]
["Gasdisponering - elproduktionsanlæg, Mek/EL","PE",20," -   "]
["Gasdisponering - elproduktionsanlæg, SRO","PE",10," -   "]
["Slutafvanding, slam - lavteknologisk (slambede), Konstruktioner","PE",60," -   "]
["Slutafvanding, slam - lavteknologisk (slambede), Mek/EL","PE",20," -   "]
["Slutafvanding, slam - lavteknologisk (slambede), SRO","PE",10," -   "]
["Slutafvanding, slam - højteknologisk (centrifuger), Konstruktioner","PE",60," -   "]
["Slutafvanding, slam - højteknologisk (centrifuger), Mek/El","PE",20," -   "]
["Slutafvanding, slam - højteknologisk (centrifuger), SRO","PE",10," -   "]
["Renseanlæg >= 5.000 PE, Slamdisponering",null,null," -   "]
["Slutdisponering, slam - lavteknologisk (slammineralisering), Konstruktioner","PE",60," -   "]
["Slutdisponering, slam - lavteknologisk (slammineralisering), Mek/EL","PE",20," -   "]
["Slutdisponering, slam - lavteknologisk (slammineralisering), SRO","PE",10," -   "]
["Slutdisponering, slam - højteknologisk (slamtørring), Konstruktioner","PE",60," -   "]
["Slutdisponering, slam - højteknologisk (slamtørring), Mek/EL","PE",20," -   "]
["Slutdisponering, slam - højteknologisk (slamtørring), SRO","PE",10," -   "]
["Slutdisponering, slam - højteknologisk (slamtørring og -forbrænding), Konstruktioner","PE",60," -   "]
["Slutdisponering, slam - højteknologisk (slamtørring og -forbrænding), Mek/EL","PE",20," -   "]
["Slutdisponering, slam - højteknologisk (slamtørring og -forbrænding), SRO","PE",10," -   "]
["Renseanlæg 5",null,null," -   "]
["Mindre renseanlæg",null,null," -   "]
["Mindre renseanlæg < 5.000 PE uden mulighed for opdeling","PE",40," -   "]
["Renseanlæg >= 5.000 PE, Vandbehandling",null,null," -   ",null,"Mariager"]
["Indløb med riste, Konstruktioner","PE",60,5092,5092]
["Indløb med riste, Mek/EL","PE",20,5092,5092]
["Indløb med riste, SRO","PE",10,5092,5092]
["Sand- og fedtfang, Kontruktioner","PE",60,5092,5092]
["Sand- og fedtfang, Mek/EL","PE",20,5092,5092]
["Sand- og fedtfang, SRO","PE",10,5092,5092]
["Forklaring, Konstruktioner","PE",60,5092,5092]
["Forklaring, Mek/EL","PE",20,5092,5092]
["Forklaring, SRO","PE",10,5092,5092]
["Beluftningstanke, Konstruktioner","PE",60,5092,5092]
["Beluftningstanke, Mek/EL","PE",20,5092,5092]
["Beluftningstanke, SRO","PE",10,5092,5092]
["Efterklaringstanke, Konstruktioner","PE",60,5092,5092]
["Efterklaringstanke, Mek/El","PE",20," -   "]
["Efterklaringstanke, SRO","PE",10," -   "]
["Efterbehandlingsanlæg (sandfilter), Konstruktioner","PE",60," -   "]
["Efterbehandlingsanlæg (sandfilter), Mek/EL","PE",20," -   "]
["Efterbehandlingsanlæg (sandfilter), SRO","PE",10," -   "]
["Renseanlæg >= 5.000 PE, Slambehandling",null,null," -   "]
["Forafvanding, slam, Konstruktion","PE",60,5092,5092]
["Forafvanding, slam, Mek/EL","PE",20,5092,5092]
["Forafvanding, slam, SRO","PE",10,5092,5092]
["Rådnetanke, slam, Konstruktioner","PE",60," -   "]
["Rådnetanke, slam, Mek/EL","PE",20," -   "]
["Rådnetanke, slam, SRO","PE",10," -   "]
["Gasdisponering, Konstruktioner","PE",60," -   "]
["Gasdisponering, Mek/EL","PE",20," -   "]
["Gasdisponering, SRO","PE",10," -   "]
["Gasdisponering - elproduktionsanlæg, Konstruktioner","PE",60," -   "]
["Gasdisponering - elproduktionsanlæg, Mek/EL","PE",20," -   "]
["Gasdisponering - elproduktionsanlæg, SRO","PE",10," -   "]
["Slutafvanding, slam - lavteknologisk (slambede), Konstruktioner","PE",60," -   "]
["Slutafvanding, slam - lavteknologisk (slambede), Mek/EL","PE",20," -   "]
["Slutafvanding, slam - lavteknologisk (slambede), SRO","PE",10," -   "]
["Slutafvanding, slam - højteknologisk (centrifuger), Konstruktioner","PE",60,5092,5092]
["Slutafvanding, slam - højteknologisk (centrifuger), Mek/El","PE",20,5092,5092]
["Slutafvanding, slam - højteknologisk (centrifuger), SRO","PE",10,5092,5092]
["Renseanlæg >= 5.000 PE, Slamdisponering",null,null," -   "]
["Slutdisponering, slam - lavteknologisk (slammineralisering), Konstruktioner","PE",60," -   "]
["Slutdisponering, slam - lavteknologisk (slammineralisering), Mek/EL","PE",20," -   "]
["Slutdisponering, slam - lavteknologisk (slammineralisering), SRO","PE",10," -   "]
["Slutdisponering, slam - højteknologisk (slamtørring), Konstruktioner","PE",60," -   "]
["Slutdisponering, slam - højteknologisk (slamtørring), Mek/EL","PE",20," -   "]
["Slutdisponering, slam - højteknologisk (slamtørring), SRO","PE",10," -   "]
["Slutdisponering, slam - højteknologisk (slamtørring og -forbrænding), Konstruktioner","PE",60," -   "]
["Slutdisponering, slam - højteknologisk (slamtørring og -forbrænding), Mek/EL","PE",20," -   "]
["Slutdisponering, slam - højteknologisk (slamtørring og -forbrænding), SRO","PE",10," -   "]
["Renseanlæg 6",null,null," -   "]
["Mindre renseanlæg",null,null," -   "]
["Mindre renseanlæg < 5.000 PE uden mulighed for opdeling","PE",40," -   "]
["Renseanlæg >= 5.000 PE, Vandbehandling",null,null," -   "]
["Indløb med riste, Konstruktioner","PE",60,75500,90000]
["Indløb med riste, Mek/EL","PE",20,75500,90000]
["Indløb med riste, SRO","PE",10,75500,90000]
["Sand- og fedtfang, Kontruktioner","PE",60,75500,90000]
["Sand- og fedtfang, Mek/EL","PE",20,75500,90000]
["Sand- og fedtfang, SRO","PE",10,75500,90000]
["Forklaring, Konstruktioner","PE",60,75500,0]
["Forklaring, Mek/EL","PE",20,75500,0]
["Forklaring, SRO","PE",10,75500,0]
["Beluftningstanke, Konstruktioner","PE",60,75500,75500]
["Beluftningstanke, Mek/EL","PE",20,75500,75500]
["Beluftningstanke, SRO","PE",10,75500,75500]
["Efterklaringstanke, Konstruktioner","PE",60,75500,90000]
["Efterklaringstanke, Mek/El","PE",20,75500,90000]
["Efterklaringstanke, SRO","PE",10,75500,90000]
["Efterbehandlingsanlæg (sandfilter), Konstruktioner","PE",60,75500,0]
["Efterbehandlingsanlæg (sandfilter), Mek/EL","PE",20,75500,0]
["Efterbehandlingsanlæg (sandfilter), SRO","PE",10,75500,0]
["Renseanlæg >= 5.000 PE, Slambehandling",null,null," -   "]
["Forafvanding, slam, Konstruktion","PE",60,75500,75500]
["Forafvanding, slam, Mek/EL","PE",20,75500,75500]
["Forafvanding, slam, SRO","PE",10,75500,75500]
["Rådnetanke, slam, Konstruktioner","PE",60,75500,75500]
["Rådnetanke, slam, Mek/EL","PE",20,75500,75500]
["Rådnetanke, slam, SRO","PE",10,75500,75500]
["Gasdisponering, Konstruktioner","PE",60,75500,75500]
["Gasdisponering, Mek/EL","PE",20,75500,75500]
["Gasdisponering, SRO","PE",10,75500,75500]
["Gasdisponering - elproduktionsanlæg, Konstruktioner","PE",60,75500,75500]
["Gasdisponering - elproduktionsanlæg, Mek/EL","PE",20,75500,75500]
["Gasdisponering - elproduktionsanlæg, SRO","PE",10,75500,75500]
["Slutafvanding, slam - lavteknologisk (slambede), Konstruktioner","PE",60," -   "]
["Slutafvanding, slam - lavteknologisk (slambede), Mek/EL","PE",20," -   "]
["Slutafvanding, slam - lavteknologisk (slambede), SRO","PE",10," -   "]
["Slutafvanding, slam - højteknologisk (centrifuger), Konstruktioner","PE",60,75500,90000]
["Slutafvanding, slam - højteknologisk (centrifuger), Mek/El","PE",20,75500,90000]
["Slutafvanding, slam - højteknologisk (centrifuger), SRO","PE",10,75500,90000]
["Renseanlæg >= 5.000 PE, Slamdisponering",null,null," -   "]
["Slutdisponering, slam - lavteknologisk (slammineralisering), Konstruktioner","PE",60," -   "]
["Slutdisponering, slam - lavteknologisk (slammineralisering), Mek/EL","PE",20," -   "]
["Slutdisponering, slam - lavteknologisk (slammineralisering), SRO","PE",10," -   "]
["Slutdisponering, slam - højteknologisk (slamtørring), Konstruktioner","PE",60," -   "]
["Slutdisponering, slam - højteknologisk (slamtørring), Mek/EL","PE",20," -   "]
["Slutdisponering, slam - højteknologisk (slamtørring), SRO","PE",10," -   "]
["Slutdisponering, slam - højteknologisk (slamtørring og -forbrænding), Konstruktioner","PE",60,75500,0]
["Slutdisponering, slam - højteknologisk (slamtørring og -forbrænding), Mek/EL","PE",20,75500,0]
["Slutdisponering, slam - højteknologisk (slamtørring og -forbrænding), SRO","PE",10,75500,0]
["Renseanlæg 7",null,null," -   "]
["Mindre renseanlæg",null,null," -   "]
["Mindre renseanlæg < 5.000 PE uden mulighed for opdeling","PE",40," -   "]
["Renseanlæg >= 5.000 PE, Vandbehandling",null,null," -   "]
["Indløb med riste, Konstruktioner","PE",60," -   "]
["Indløb med riste, Mek/EL","PE",20," -   "]
["Indløb med riste, SRO","PE",10," -   "]
["Sand- og fedtfang, Kontruktioner","PE",60," -   "]
["Sand- og fedtfang, Mek/EL","PE",20," -   "]
["Sand- og fedtfang, SRO","PE",10," -   "]
["Forklaring, Konstruktioner","PE",60," -   "]
["Forklaring, Mek/EL","PE",20," -   "]
["Forklaring, SRO","PE",10," -   "]
["Beluftningstanke, Konstruktioner","PE",60," -   "]
["Beluftningstanke, Mek/EL","PE",20," -   "]
["Beluftningstanke, SRO","PE",10," -   "]
["Efterklaringstanke, Konstruktioner","PE",60," -   "]
["Efterklaringstanke, Mek/El","PE",20," -   "]
["Efterklaringstanke, SRO","PE",10," -   "]
["Efterbehandlingsanlæg (sandfilter), Konstruktioner","PE",60," -   "]
["Efterbehandlingsanlæg (sandfilter), Mek/EL","PE",20," -   "]
["Efterbehandlingsanlæg (sandfilter), SRO","PE",10," -   "]
["Renseanlæg >= 5.000 PE, Slambehandling",null,null," -   "]
["Forafvanding, slam, Konstruktion","PE",60," -   "]
["Forafvanding, slam, Mek/EL","PE",20," -   "]
["Forafvanding, slam, SRO","PE",10," -   "]
["Rådnetanke, slam, Konstruktioner","PE",60," -   "]
["Rådnetanke, slam, Mek/EL","PE",20," -   "]
["Rådnetanke, slam, SRO","PE",10," -   "]
["Gasdisponering, Konstruktioner","PE",60," -   "]
["Gasdisponering, Mek/EL","PE",20," -   "]
["Gasdisponering, SRO","PE",10," -   "]
["Gasdisponering - elproduktionsanlæg, Konstruktioner","PE",60," -   "]
["Gasdisponering - elproduktionsanlæg, Mek/EL","PE",20," -   "]
["Gasdisponering - elproduktionsanlæg, SRO","PE",10," -   "]
["Slutafvanding, slam - lavteknologisk (slambede), Konstruktioner","PE",60," -   "]
["Slutafvanding, slam - lavteknologisk (slambede), Mek/EL","PE",20," -   "]
["Slutafvanding, slam - lavteknologisk (slambede), SRO","PE",10," -   "]
["Slutafvanding, slam - højteknologisk (centrifuger), Konstruktioner","PE",60," -   "]
["Slutafvanding, slam - højteknologisk (centrifuger), Mek/El","PE",20," -   "]
["Slutafvanding, slam - højteknologisk (centrifuger), SRO","PE",10," -   "]
["Renseanlæg >= 5.000 PE, Slamdisponering",null,null," -   "]
["Slutdisponering, slam - lavteknologisk (slammineralisering), Konstruktioner","PE",60," -   "]
["Slutdisponering, slam - lavteknologisk (slammineralisering), Mek/EL","PE",20," -   "]
["Slutdisponering, slam - lavteknologisk (slammineralisering), SRO","PE",10," -   "]
["Slutdisponering, slam - højteknologisk (slamtørring), Konstruktioner","PE",60," -   "]
["Slutdisponering, slam - højteknologisk (slamtørring), Mek/EL","PE",20," -   "]
["Slutdisponering, slam - højteknologisk (slamtørring), SRO","PE",10," -   "]
["Slutdisponering, slam - højteknologisk (slamtørring og -forbrænding), Konstruktioner","PE",60," -   "]
["Slutdisponering, slam - højteknologisk (slamtørring og -forbrænding), Mek/EL","PE",20," -   "]
["Slutdisponering, slam - højteknologisk (slamtørring og -forbrænding), SRO","PE",10," -   "]
["Renseanlæg 8",null,null," -   "]
["Mindre renseanlæg",null,null," -   "]
["Mindre renseanlæg < 5.000 PE uden mulighed for opdeling","PE",40," -   "]
["Renseanlæg >= 5.000 PE, Vandbehandling",null,null," -   "]
["Indløb med riste, Konstruktioner","PE",60," -   "]
["Indløb med riste, Mek/EL","PE",20," -   "]
["Indløb med riste, SRO","PE",10," -   "]
["Sand- og fedtfang, Kontruktioner","PE",60," -   "]
["Sand- og fedtfang, Mek/EL","PE",20," -   "]
["Sand- og fedtfang, SRO","PE",10," -   "]
["Forklaring, Konstruktioner","PE",60," -   "]
["Forklaring, Mek/EL","PE",20," -   "]
["Forklaring, SRO","PE",10," -   "]
["Beluftningstanke, Konstruktioner","PE",60," -   "]
["Beluftningstanke, Mek/EL","PE",20," -   "]
["Beluftningstanke, SRO","PE",10," -   "]
["Efterklaringstanke, Konstruktioner","PE",60," -   "]
["Efterklaringstanke, Mek/El","PE",20," -   "]
["Efterklaringstanke, SRO","PE",10," -   "]
["Efterbehandlingsanlæg (sandfilter), Konstruktioner","PE",60," -   "]
["Efterbehandlingsanlæg (sandfilter), Mek/EL","PE",20," -   "]
["Efterbehandlingsanlæg (sandfilter), SRO","PE",10," -   "]
["Renseanlæg >= 5.000 PE, Slambehandling",null,null," -   "]
["Forafvanding, slam, Konstruktion","PE",60," -   "]
["Forafvanding, slam, Mek/EL","PE",20," -   "]
["Forafvanding, slam, SRO","PE",10," -   "]
["Rådnetanke, slam, Konstruktioner","PE",60," -   "]
["Rådnetanke, slam, Mek/EL","PE",20," -   "]
["Rådnetanke, slam, SRO","PE",10," -   "]
["Gasdisponering, Konstruktioner","PE",60," -   "]
["Gasdisponering, Mek/EL","PE",20," -   "]
["Gasdisponering, SRO","PE",10," -   "]
["Gasdisponering - elproduktionsanlæg, Konstruktioner","PE",60," -   "]
["Gasdisponering - elproduktionsanlæg, Mek/EL","PE",20," -   "]
["Gasdisponering - elproduktionsanlæg, SRO","PE",10," -   "]
["Slutafvanding, slam - lavteknologisk (slambede), Konstruktioner","PE",60," -   "]
["Slutafvanding, slam - lavteknologisk (slambede), Mek/EL","PE",20," -   "]
["Slutafvanding, slam - lavteknologisk (slambede), SRO","PE",10," -   "]
["Slutafvanding, slam - højteknologisk (centrifuger), Konstruktioner","PE",60," -   "]
["Slutafvanding, slam - højteknologisk (centrifuger), Mek/El","PE",20," -   "]
["Slutafvanding, slam - højteknologisk (centrifuger), SRO","PE",10," -   "]
["Renseanlæg >= 5.000 PE, Slamdisponering",null,null," -   "]
["Slutdisponering, slam - lavteknologisk (slammineralisering), Konstruktioner","PE",60," -   "]
["Slutdisponering, slam - lavteknologisk (slammineralisering), Mek/EL","PE",20," -   "]
["Slutdisponering, slam - lavteknologisk (slammineralisering), SRO","PE",10," -   "]
["Slutdisponering, slam - højteknologisk (slamtørring), Konstruktioner","PE",60," -   "]
["Slutdisponering, slam - højteknologisk (slamtørring), Mek/EL","PE",20," -   "]
["Slutdisponering, slam - højteknologisk (slamtørring), SRO","PE",10," -   "]
["Slutdisponering, slam - højteknologisk (slamtørring og -forbrænding), Konstruktioner","PE",60," -   "]
["Slutdisponering, slam - højteknologisk (slamtørring og -forbrænding), Mek/EL","PE",20," -   "]
["Slutdisponering, slam - højteknologisk (slamtørring og -forbrænding), SRO","PE",10," -   "]
["Renseanlæg 9",null,null," -   "]
["Mindre renseanlæg",null,null," -   "]
["Mindre renseanlæg < 5.000 PE uden mulighed for opdeling","PE",40," -   "]
["Renseanlæg >= 5.000 PE, Vandbehandling",null,null," -   "]
["Indløb med riste, Konstruktioner","PE",60," -   "]
["Indløb med riste, Mek/EL","PE",20," -   "]
["Indløb med riste, SRO","PE",10," -   "]
["Sand- og fedtfang, Kontruktioner","PE",60," -   "]
["Sand- og fedtfang, Mek/EL","PE",20," -   "]
["Sand- og fedtfang, SRO","PE",10," -   "]
["Forklaring, Konstruktioner","PE",60," -   "]
["Forklaring, Mek/EL","PE",20," -   "]
["Forklaring, SRO","PE",10," -   "]
["Beluftningstanke, Konstruktioner","PE",60," -   "]
["Beluftningstanke, Mek/EL","PE",20," -   "]
["Beluftningstanke, SRO","PE",10," -   "]
["Efterklaringstanke, Konstruktioner","PE",60," -   "]
["Efterklaringstanke, Mek/El","PE",20," -   "]
["Efterklaringstanke, SRO","PE",10," -   "]
["Efterbehandlingsanlæg (sandfilter), Konstruktioner","PE",60," -   "]
["Efterbehandlingsanlæg (sandfilter), Mek/EL","PE",20," -   "]
["Efterbehandlingsanlæg (sandfilter), SRO","PE",10," -   "]
["Renseanlæg >= 5.000 PE, Slambehandling",null,null," -   "]
["Forafvanding, slam, Konstruktion","PE",60," -   "]
["Forafvanding, slam, Mek/EL","PE",20," -   "]
["Forafvanding, slam, SRO","PE",10," -   "]
["Rådnetanke, slam, Konstruktioner","PE",60," -   "]
["Rådnetanke, slam, Mek/EL","PE",20," -   "]
["Rådnetanke, slam, SRO","PE",10," -   "]
["Gasdisponering, Konstruktioner","PE",60," -   "]
["Gasdisponering, Mek/EL","PE",20," -   "]
["Gasdisponering, SRO","PE",10," -   "]
["Gasdisponering - elproduktionsanlæg, Konstruktioner","PE",60," -   "]
["Gasdisponering - elproduktionsanlæg, Mek/EL","PE",20," -   "]
["Gasdisponering - elproduktionsanlæg, SRO","PE",10," -   "]
["Slutafvanding, slam - lavteknologisk (slambede), Konstruktioner","PE",60," -   "]
["Slutafvanding, slam - lavteknologisk (slambede), Mek/EL","PE",20," -   "]
["Slutafvanding, slam - lavteknologisk (slambede), SRO","PE",10," -   "]
["Slutafvanding, slam - højteknologisk (centrifuger), Konstruktioner","PE",60," -   "]
["Slutafvanding, slam - højteknologisk (centrifuger), Mek/El","PE",20," -   "]
["Slutafvanding, slam - højteknologisk (centrifuger), SRO","PE",10," -   "]
["Renseanlæg >= 5.000 PE, Slamdisponering",null,null," -   "]
["Slutdisponering, slam - lavteknologisk (slammineralisering), Konstruktioner","PE",60," -   "]
["Slutdisponering, slam - lavteknologisk (slammineralisering), Mek/EL","PE",20," -   "]
["Slutdisponering, slam - lavteknologisk (slammineralisering), SRO","PE",10," -   "]
["Slutdisponering, slam - højteknologisk (slamtørring), Konstruktioner","PE",60," -   "]
["Slutdisponering, slam - højteknologisk (slamtørring), Mek/EL","PE",20," -   "]
["Slutdisponering, slam - højteknologisk (slamtørring), SRO","PE",10," -   "]
["Slutdisponering, slam - højteknologisk (slamtørring og -forbrænding), Konstruktioner","PE",60," -   "]
["Slutdisponering, slam - højteknologisk (slamtørring og -forbrænding), Mek/EL","PE",20," -   "]
["Slutdisponering, slam - højteknologisk (slamtørring og -forbrænding), SRO","PE",10," -   "]
["Renseanlæg 10",null,null," -   "]
["Mindre renseanlæg",null,null," -   "]
["Mindre renseanlæg < 5.000 PE uden mulighed for opdeling","PE",40," -   "]
["Renseanlæg >= 5.000 PE, Vandbehandling",null,null," -   "]
["Indløb med riste, Konstruktioner","PE",60," -   "]
["Indløb med riste, Mek/EL","PE",20," -   "]
["Indløb med riste, SRO","PE",10," -   "]
["Sand- og fedtfang, Kontruktioner","PE",60," -   "]
["Sand- og fedtfang, Mek/EL","PE",20," -   "]
["Sand- og fedtfang, SRO","PE",10," -   "]
["Forklaring, Konstruktioner","PE",60," -   "]
["Forklaring, Mek/EL","PE",20," -   "]
["Forklaring, SRO","PE",10," -   "]
["Beluftningstanke, Konstruktioner","PE",60," -   "]
["Beluftningstanke, Mek/EL","PE",20," -   "]
["Beluftningstanke, SRO","PE",10," -   "]
["Efterklaringstanke, Konstruktioner","PE",60," -   "]
["Efterklaringstanke, Mek/El","PE",20," -   "]
["Efterklaringstanke, SRO","PE",10," -   "]
["Efterbehandlingsanlæg (sandfilter), Konstruktioner","PE",60," -   "]
["Efterbehandlingsanlæg (sandfilter), Mek/EL","PE",20," -   "]
["Efterbehandlingsanlæg (sandfilter), SRO","PE",10," -   "]
["Renseanlæg >= 5.000 PE, Slambehandling",null,null," -   "]
["Forafvanding, slam, Konstruktion","PE",60," -   "]
["Forafvanding, slam, Mek/EL","PE",20," -   "]
["Forafvanding, slam, SRO","PE",10," -   "]
["Rådnetanke, slam, Konstruktioner","PE",60," -   "]
["Rådnetanke, slam, Mek/EL","PE",20," -   "]
["Rådnetanke, slam, SRO","PE",10," -   "]
["Gasdisponering, Konstruktioner","PE",60," -   "]
["Gasdisponering, Mek/EL","PE",20," -   "]
["Gasdisponering, SRO","PE",10," -   "]
["Gasdisponering - elproduktionsanlæg, Konstruktioner","PE",60," -   "]
["Gasdisponering - elproduktionsanlæg, Mek/EL","PE",20," -   "]
["Gasdisponering - elproduktionsanlæg, SRO","PE",10," -   "]
["Slutafvanding, slam - lavteknologisk (slambede), Konstruktioner","PE",60," -   "]
["Slutafvanding, slam - lavteknologisk (slambede), Mek/EL","PE",20," -   "]
["Slutafvanding, slam - lavteknologisk (slambede), SRO","PE",10," -   "]
["Slutafvanding, slam - højteknologisk (centrifuger), Konstruktioner","PE",60," -   "]
["Slutafvanding, slam - højteknologisk (centrifuger), Mek/El","PE",20," -   "]
["Slutafvanding, slam - højteknologisk (centrifuger), SRO","PE",10," -   "]
["Renseanlæg >= 5.000 PE, Slamdisponering",null,null," -   "]
["Slutdisponering, slam - lavteknologisk (slammineralisering), Konstruktioner","PE",60," -   "]
["Slutdisponering, slam - lavteknologisk (slammineralisering), Mek/EL","PE",20," -   "]
["Slutdisponering, slam - lavteknologisk (slammineralisering), SRO","PE",10," -   "]
["Slutdisponering, slam - højteknologisk (slamtørring), Konstruktioner","PE",60," -   "]
["Slutdisponering, slam - højteknologisk (slamtørring), Mek/EL","PE",20," -   "]
["Slutdisponering, slam - højteknologisk (slamtørring), SRO","PE",10," -   "]
["Slutdisponering, slam - højteknologisk (slamtørring og -forbrænding), Konstruktioner","PE",60," -   "]
["Slutdisponering, slam - højteknologisk (slamtørring og -forbrænding), Mek/EL","PE",20," -   "]
["Slutdisponering, slam - højteknologisk (slamtørring og -forbrænding), SRO","PE",10," -   "]
["Mindre renseanlæg",null,null," -   "]
["Mindre renseanlæg < 5.000 PE uden mulighed for opdeling","PE",40," -   "]
["Renseanlæg >= 5.000 PE, Vandbehandling",null,null," -   "]
["Indløb med riste, Konstruktioner","PE",60," -   "]
["Indløb med riste, Mek/EL","PE",20," -   "]
["Indløb med riste, SRO","PE",10," -   "]
["Sand- og fedtfang, Kontruktioner","PE",60," -   "]
["Sand- og fedtfang, Mek/EL","PE",20," -   "]
["Sand- og fedtfang, SRO","PE",10," -   "]
["Forklaring, Konstruktioner","PE",60," -   "]
["Forklaring, Mek/EL","PE",20," -   "]
["Forklaring, SRO","PE",10," -   "]
["Beluftningstanke, Konstruktioner","PE",60," -   "]
["Beluftningstanke, Mek/EL","PE",20," -   "]
["Beluftningstanke, SRO","PE",10," -   "]
["Efterklaringstanke, Konstruktioner","PE",60," -   "]
["Efterklaringstanke, Mek/El","PE",20," -   "]
["Efterklaringstanke, SRO","PE",10," -   "]
["Efterbehandlingsanlæg (sandfilter), Konstruktioner","PE",60," -   "]
["Efterbehandlingsanlæg (sandfilter), Mek/EL","PE",20," -   "]
["Efterbehandlingsanlæg (sandfilter), SRO","PE",10," -   "]
["Renseanlæg >= 5.000 PE, Slambehandling",null,null," -   "]
["Forafvanding, slam, Konstruktion","PE",60," -   "]
["Forafvanding, slam, Mek/EL","PE",20," -   "]
["Forafvanding, slam, SRO","PE",10," -   "]
["Rådnetanke, slam, Konstruktioner","PE",60," -   "]
["Rådnetanke, slam, Mek/EL","PE",20," -   "]
["Rådnetanke, slam, SRO","PE",10," -   "]
["Gasdisponering, Konstruktioner","PE",60," -   "]
["Gasdisponering, Mek/EL","PE",20," -   "]
["Gasdisponering, SRO","PE",10," -   "]
["Gasdisponering - elproduktionsanlæg, Konstruktioner","PE",60," -   "]
["Gasdisponering - elproduktionsanlæg, Mek/EL","PE",20," -   "]
["Gasdisponering - elproduktionsanlæg, SRO","PE",10," -   "]
["Slutafvanding, slam - lavteknologisk (slambede), Konstruktioner","PE",60," -   "]
["Slutafvanding, slam - lavteknologisk (slambede), Mek/EL","PE",20," -   "]
["Slutafvanding, slam - lavteknologisk (slambede), SRO","PE",10," -   "]
["Slutafvanding, slam - højteknologisk (centrifuger), Konstruktioner","PE",60," -   "]
["Slutafvanding, slam - højteknologisk (centrifuger), Mek/El","PE",20," -   "]
["Slutafvanding, slam - højteknologisk (centrifuger), SRO","PE",10," -   "]
["Renseanlæg >= 5.000 PE, Slamdisponering",null,null," -   "]
["Slutdisponering, slam - lavteknologisk (slammineralisering), Konstruktioner","PE",60," -   "]
["Slutdisponering, slam - lavteknologisk (slammineralisering), Mek/EL","PE",20," -   "]
["Slutdisponering, slam - lavteknologisk (slammineralisering), SRO","PE",10," -   "]
["Slutdisponering, slam - højteknologisk (slamtørring), Konstruktioner","PE",60," -   "]
["Slutdisponering, slam - højteknologisk (slamtørring), Mek/EL","PE",20," -   "]
["Slutdisponering, slam - højteknologisk (slamtørring), SRO","PE",10," -   "]
["Slutdisponering, slam - højteknologisk (slamtørring og -forbrænding), Konstruktioner","PE",60," -   "]
["Slutdisponering, slam - højteknologisk (slamtørring og -forbrænding), Mek/EL","PE",20," -   "]
["Slutdisponering, slam - højteknologisk (slamtørring og -forbrænding), SRO","PE",10," -   "]
[null,null,null," -   "]

{"sheet":"Distributionsanlæg","index":1,"n_rows":322,"n_cols":6,"rows_kept":322,"cut":false,"hidden":false,"merged":[[0,5,1,5],[0,0,1,0],[0,1,1,1],[0,2,1,2],[0,3,1,3],[0,4,1,4]]}
["Distributionsanlæg","Enhed","Standard-levetid","Samlet mængde per 31/12-2014","Samlet mængde per 31/12-2015","Bemærk-ninger"]
[]
["Ledningsnet - Land"]
["Ledningsnet ≤ Ø 200 mm ","meter",75,283526,{"$f":"+D4+14.203-5125","v":278415.20299999998}]
["Ø 200 mm < Ledningsnet ≤ Ø 500 mm ","meter",75,164235,{"$f":"+D5+1.187","v":164236.18700000001}]
["Ø 500 mm < Ledningsnet ≤ Ø 800 mm","meter",75,30181,{"$f":"+D6","v":30181}]
["Ø 800 mm < Ledningsnet ≤ Ø 1000 mm","meter",75,1119,1119]
["Ø 1000 mm < Ledningsnet ≤ Ø 1200 mm","meter",75,881,881]
["Ø 1200 mm < Ledningsnet ≤ Ø 1600 mm","meter",75,258,258]
["Ledningsnet > Ø 1600 mm (rørbassiner og transportledninger)","meter",75,0,0]
["Strømpeforing ≤ Ø 200 mm","meter",50,0,0]
["Strømpeforing Ø 200 mm < Ledningsnet ≤ Ø 500 mm","meter",50,0,0]
["Strømpeforing Ø 500 mm < Ledningsnet ≤ Ø 800 mm","meter",50,0,0]
["Strømpeforing Ø 800 mm < Ledningsnet ≤ Ø 1000 mm","meter",50,0,0]
["Strømpeforing Ø 1000 mm < Ledningsnet ≤ Ø 1200 mm","meter",50,0,0]
["Strømpeforing Ø 1200 mm < Ledningsnet ≤ Ø 1600 mm","meter",50,0,0]
["Ledningsnet - By",null,null,0,0]
["Ledningsnet ≤ Ø 200 mm ","meter",75,368188,{"$f":"+D18+120-22684","v":345624}]
["Ø 200 mm < Ledningsnet ≤ Ø 500 mm ","meter",75,173592,{"$f":"+D19+1165+272","v":175029}]
["Ø 500 mm < Ledningsnet ≤ Ø 800 mm","meter",75,45542,45542]
["Ø 800 mm < Ledningsnet ≤ Ø 1000 mm","meter",75,7606,7606]
["Ø 1000 mm < Ledningsnet ≤ Ø 1200 mm","meter",75,4538,4538]
["Ø 1200 mm < Ledningsnet ≤ Ø 1600 mm","meter",75,511,511]
["Ledningsnet > Ø 1600 mm (rørbassiner og transportledninger)","meter",75,0,0]
["Strømpeforing ≤ Ø 200 mm","meter",50,0,0]
["Strømpeforing Ø 200 mm < Ledningsnet ≤ Ø 500 mm","meter",50,200,200]
["Strømpeforing Ø 500 mm < Ledningsnet ≤ Ø 800 mm","meter",50,0,0]
["Strømpeforing Ø 800 mm < Ledningsnet ≤ Ø 1000 mm","meter",50,0,0]
["Strømpeforing Ø 1000 mm < Ledningsnet ≤ Ø 1200 mm","meter",50,0,0]
["Strømpeforing Ø 1200 mm < Ledningsnet ≤ Ø 1600 mm","meter",50,0,0]
["Ledningsnet - City",null,null,0,0]
["Ledningsnet ≤ Ø 200 mm ","meter",75,5611,5611]
["Ø 200 mm < Ledningsnet ≤ Ø 500 mm ","meter",75,9450,{"$f":"+D33+39","v":9489}]
["Ø 500 mm < Ledningsnet ≤ Ø 800 mm","meter",75,0,0]
["Ø 800 mm < Ledningsnet ≤ Ø 1000 mm","meter",75,0,0]
["Ø 1000 mm < Ledningsnet ≤ Ø 1200 mm","meter",75,0,0]
["Ø 1200 mm < Ledningsnet ≤ Ø 1600 mm","meter",75,0,0]
["Ledningsnet > Ø 1600 mm (rørbassiner og transportledninger)","meter",75,0,0]
["Strømpeforing ≤ Ø 200 mm","meter",50,0,0]
["Strømpeforing Ø 200 mm < Ledningsnet ≤ Ø 500 mm","meter",50,0,0]
["Strømpeforing Ø 500 mm < Ledningsnet ≤ Ø 800 mm","meter",50,0,0]
["Strømpeforing Ø 800 mm < Ledningsnet ≤ Ø 1000 mm","meter",50,0,0]
["Strømpeforing Ø 1000 mm < Ledningsnet ≤ Ø 1200 mm","meter",50,0,0]
["Strømpeforing Ø 1200 mm < Ledningsnet ≤ Ø 1600 mm","meter",50,0,0]
["Ledningsnet - Indre city",null,null,0,0]
["Ledningsnet ≤ Ø 200 mm ","meter",75,0,0]
["Ø 200 mm < Ledningsnet ≤ Ø 500 mm ","meter",75,0,0]
["Ø 500 mm < Ledningsnet ≤ Ø 800 mm","meter",75,0,0]
["Ø 800 mm < Ledningsnet ≤ Ø 1000 mm","meter",75,0,0]
["Ø 1000 mm < Ledningsnet ≤ Ø 1200 mm","meter",75,0,0]
["Ø 1200 mm < Ledningsnet ≤ Ø 1600 mm","meter",75,0,0]
["Ledningsnet > Ø 1600 mm (rørbassiner og transportledninger)","meter",75,0,0]
["Strømpeforing ≤ Ø 200 mm","meter",50,0,0]
["Strømpeforing Ø 200 mm < Ledningsnet ≤ Ø 500 mm","meter",50,0,0]
["Strømpeforing Ø 500 mm < Ledningsnet ≤ Ø 800 mm","meter",50,0,0]
["Strømpeforing Ø 800 mm < Ledningsnet ≤ Ø 1000 mm","meter",50,0,0]
["Strømpeforing Ø 1000 mm < Ledningsnet ≤ Ø 1200 mm","meter",50,0,0]
["Strømpeforing Ø 1200 mm < Ledningsnet ≤ Ø 1600 mm","meter",50,0,0]
["Brønde og stik, ledningsnet - Land",null,null,0,0]
["Brønde","stk.",75,4101,{"$f":"+D60+50","v":4151}]
["Stik","stk.",75,5920,{"$f":"+D61+200","v":6120}]
["Brønde og stik, ledningsnet - By",null,null,0,0]
["Brønde","stk.",75,12863,{"$f":"+D63+50","v":12913}]
["Stik","stk.",75,34147,{"$f":"+D64+100","v":34247}]
["Brønde og stik, ledningsnet - City",null,null,0,0]
["Brønde","stk.",75,200,200]
["Stik","stk.",75,100,100]
["Brønde og stik, ledningsnet - Indre city",null,null,0,0]
["Brønde","stk.",75,0,{"$f":"+D69","v":0}]
["Stik","stk.",75,0,0]
["Små pumpestationer inkl. SRO-anlæg - Land",null,null,0,0]
["Tryksatte minipumpestationer (husstandssystemer)","stk.",30,0,0]
["Pumpestationer i brønde (< 6,25 m2), Konstruktioner","stk.",50,25,25]
["Pumpestationer i brønde (< 6,25 m2), Mek/EL","stk.",20,39,25]
["Pumpestationer i brønde (< 6,25 m2), SRO","stk.",10,39,25]
["Pumpestationer m. overbygning (< 20 m2), Konstruktioner","stk.",50,27,35]
["Pumpestationer m. overbygning (< 20 m2), Mek/EL","stk.",20,53,35]
["Pumpestationer m. overbygning (< 20 m2), SRO","stk.",10,53,35]
["Pumpestationer i underjordiske bygværker (<50 m2), Konstruktioner","stk.",50,17,25]
["Pumpestationer i underjordiske bygværker (<50 m2), Mek/El","stk.",20,32,25]
["Pumpestationer i underjordiske bygværker (<50 m2), SRO","stk.",10,32,25]
["Små pumpestationer inkl. SRO-anlæg - By",null,null,0,0]
["Tryksatte minipumpestationer (husstandssystemer)","stk.",30,2,4]
["Pumpestationer i brønde (< 6,25 m2), Konstruktioner","stk.",50,53,{"$f":"43+7+1","v":51}]
["Pumpestationer i brønde (< 6,25 m2), Mek/EL","stk.",20,83,{"$f":"43+7+1","v":51}]
["Pumpestationer i brønde (< 6,25 m2), SRO","stk.",10,83,51]
["Pumpestationer m. overbygning (< 20 m2), Konstruktioner","stk.",50,26,{"$f":"35+2","v":37}]
["Pumpestationer m. overbygning (< 20 m2), Mek/EL","stk.",20,45,{"$f":"35+2","v":37}]
["Pumpestationer m. overbygning (< 20 m2), SRO","stk.",10,44,37]
["Pumpestationer i underjordiske bygværker (<50 m2), Konstruktioner","stk.",50,20,30]
["Pumpestationer i underjordiske bygværker (<50 m2), Mek/El","stk.",20,38,30]
["Pumpestationer i underjordiske bygværker (<50 m2), SRO","stk.",10,38,30]
["Små pumpestationer inkl. SRO-anlæg - City",null,null,0,0]
["Tryksatte minipumpestationer (husstandssystemer)","stk.",30,0,0]
["Pumpestationer i brønde (< 6,25 m2), Konstruktioner","stk.",50,0,0]
["Pumpestationer i brønde (< 6,25 m2), Mek/EL","stk.",20,0,0]
["Pumpestationer i brønde (< 6,25 m2), SRO","stk.",10,0,0]
["Pumpestationer m. overbygning (< 20 m2), Konstruktioner","stk.",50,0,0]
["Pumpestationer m. overbygning (< 20 m2), Mek/EL","stk.",20,0,0]
["Pumpestationer m. overbygning (< 20 m2), SRO","stk.",10,0,0]
["Pumpestationer i underjordiske bygværker (<50 m2), Konstruktioner","stk.",50,0,0]
["Pumpestationer i underjordiske bygværker (<50 m2), Mek/El","stk.",20,0,0]
["Pumpestationer i underjordiske bygværker (<50 m2), SRO","stk.",10,0,0]
["Små pumpestationer inkl. SRO-anlæg - Indre city",null,null,0,0]
["Tryksatte minipumpestationer (husstandssystemer)","stk.",30,0,0]
["Pumpestationer i brønde (< 6,25 m2), Konstruktioner","stk.",50,0,0]
["Pumpestationer i brønde (< 6,25 m2), Mek/EL","stk.",20,0,0]
["Pumpestationer i brønde (< 6,25 m2), SRO","stk.",10,0,0]
["Pumpestationer m. overbygning (< 20 m2), Konstruktioner","stk.",50,0,0]
["Pumpestationer m. overbygning (< 20 m2), Mek/EL","stk.",20,0,0]
["Pumpestationer m. overbygning (< 20 m2), SRO","stk.",10,0,0]
["Pumpestationer i underjordiske bygværker (<50 m2), Konstruktioner","stk.",50,0,0]
["Pumpestationer i underjordiske bygværker (<50 m2), Mek/El","stk.",20,0,0]
["Pumpestationer i underjordiske bygværker (<50 m2), SRO","stk.",10,0,0]
["Store pumpestationer: inkl. SRO-anlæg - Land",null,null,0,0]
["Kælder","m2",75,100,130]
["Pumpeinstallation Miljøklasse A (100-300 l/s) - Mek/EL","stk.",20,4,4]
["Pumpeinstallation Miljøklasse A (100-300 l/s) - SRO","stk.",10,4,4]
["Pumpeinstallation Miljøklasse A (300-600 l/s) - Mek/EL","stk.",20,0,0]
["Pumpeinstallation Miljøklasse A (300-600 l/s) - SRO","stk.",10,0,0]
["Pumpeinstallation Miljøklasse A (600-1.000 l/s) - Mek/EL","stk.",20,0,0]
["Pumpeinstallation Miljøklasse A (600-1.000 l/s) - SRO","stk.",10,0,0]
["Pumpeinstallation Miljøklasse A (1.000-1.500 l/s) - Mek/EL","stk.",20,0,0]
["Pumpeinstallation Miljøklasse A (1.000-1.500 l/s) - SRO","stk.",10,0,0]
["Pumpeinstallation Miljøklasse B (100-300 l/s) - Mek/EL","stk.",20,6,6]
["Pumpeinstallation Miljøklasse B (100-300 l/s) - SRO","stk.",10,6,6]
["Pumpeinstallation Miljøklasse B (300-600 l/s) - Mek/EL","stk.",20,0,0]
["Pumpeinstallation Miljøklasse B (300-600 l/s) - SRO","stk.",10,0,0]
["Pumpeinstallation Miljøklasse B (600-1.000 l/s) - Mek/EL","stk.",20,0,0]
["Pumpeinstallation Miljøklasse B (600-1.000 l/s) - SRO","stk.",10,0,0]
["Pumpeinstallation Miljøklasse B (1.000-1.500 l/s) - Mek/EL","stk.",20,0,0]
["Pumpeinstallation Miljøklasse B (1.000-1.500 l/s) - SRO","stk.",10,0,0]
["Overbygning","m2",75,56,{"$f":"+D133","v":56}]
["Store pumpestationer: inkl. SRO-anlæg - By",null,null,0,0]
["Kælder","m2",75,263,263]
["Pumpeinstallation Miljøklasse A (100-300 l/s) - Mek/EL","stk.",20,4,{"$f":"+D136+2","v":6}]
["Pumpeinstallation Miljøklasse A (100-300 l/s) - SRO","stk.",10,4,{"$f":"+D137+2","v":6}]
["Pumpeinstallation Miljøklasse A (300-600 l/s) - Mek/EL","stk.",20,0,0]
["Pumpeinstallation Miljøklasse A (300-600 l/s) - SRO","stk.",10,0,0]
["Pumpeinstallation Miljøklasse A (600-1.000 l/s) - Mek/EL","stk.",20,0,0]
["Pumpeinstallation Miljøklasse A (600-1.000 l/s) - SRO","stk.",10,0,0]
["Pumpeinstallation Miljøklasse A (1.000-1.500 l/s) - Mek/EL","stk.",20,6,6]
["Pumpeinstallation Miljøklasse A (1.000-1.500 l/s) - SRO","stk.",10,6,6]
["Pumpeinstallation Miljøklasse B (100-300 l/s) - Mek/EL","stk.",20,0,0]
["Pumpeinstallation Miljøklasse B (100-300 l/s) - SRO","stk.",10,0,0]
["Pumpeinstallation Miljøklasse B (300-600 l/s) - Mek/EL","stk.",20,0,0]
["Pumpeinstallation Miljøklasse B (300-600 l/s) - SRO","stk.",10,0,0]
["Pumpeinstallation Miljøklasse B (600-1.000 l/s) - Mek/EL","stk.",20,0,0]
["Pumpeinstallation Miljøklasse B (600-1.000 l/s) - SRO","stk.",10,0,0]
["Pumpeinstallation Miljøklasse B (1.000-1.500 l/s) - Mek/EL","stk.",20,0,0]
["Pumpeinstallation Miljøklasse B (1.000-1.500 l/s) - SRO","stk.",10,0,0]
["Overbygning ","m2",75,198,198]
["Store pumpestationer: inkl. SRO-anlæg - City",null,null,0,0]
["Kælder","m2",75,0,0]
["Pumpeinstallation Miljøklasse A (100-300 l/s) - Mek/EL","stk.",20,0,0]
["Pumpeinstallation Miljøklasse A (100-300 l/s) - SRO","stk.",10,0,0]
["Pumpeinstallation Miljøklasse A (300-600 l/s) - Mek/EL","stk.",20,0,0]
["Pumpeinstallation Miljøklasse A (300-600 l/s) - SRO","stk.",10,0,0]
["Pumpeinstallation Miljøklasse A (600-1.000 l/s) - Mek/EL","stk.",20,0,0]
["Pumpeinstallation Miljøklasse A (600-1.000 l/s) - SRO","stk.",10,0,0]
["Pumpeinstallation Miljøklasse A (1.000-1.500 l/s) - Mek/EL","stk.",20,0,0]
["Pumpeinstallation Miljøklasse A (1.000-1.500 l/s) - SRO","stk.",10,0,0]
["Pumpeinstallation Miljøklasse B (100-300 l/s) - Mek/EL","stk.",20,0,0]
["Pumpeinstallation Miljøklasse B (100-300 l/s) - SRO","stk.",10,0,0]
["Pumpeinstallation Miljøklasse B (300-600 l/s) - Mek/EL","stk.",20,0,0]
["Pumpeinstallation Miljøklasse B (300-600 l/s) - SRO","stk.",10,0,0]
["Pumpeinstallation Miljøklasse B (600-1.000 l/s) - Mek/EL","stk.",20,0,0]
["Pumpeinstallation Miljøklasse B (600-1.000 l/s) - SRO","stk.",10,0,0]
["Pumpeinstallation Miljøklasse B (1.000-1.500 l/s) - Mek/EL","stk.",20,0,0]
["Pumpeinstallation Miljøklasse B (1.000-1.500 l/s) - SRO","stk.",10,0,0]
["Overbygning ","m2",75,0,0]
["Store pumpestationer: inkl. SRO-anlæg - Indre city",null,null,0,0]
["Kælder","m2",75,0,0]
["Pumpeinstallation Miljøklasse A (100-300 l/s) - Mek/EL","stk.",20,0,0]
["Pumpeinstallation Miljøklasse A (100-300 l/s) - SRO","stk.",10,0,0]
["Pumpeinstallation Miljøklasse A (300-600 l/s) - Mek/EL","stk.",20,0,0]
["Pumpeinstallation Miljøklasse A (300-600 l/s) - SRO","stk.",10,0,0]
["Pumpeinstallation Miljøklasse A (600-1.000 l/s) - Mek/EL","stk.",20,0,0]
["Pumpeinstallation Miljøklasse A (600-1.000 l/s) - SRO","stk.",10,0,0]
["Pumpeinstallation Miljøklasse A (1.000-1.500 l/s) - Mek/EL","stk.",20,0,0]
["Pumpeinstallation Miljøklasse A (1.000-1.500 l/s) - SRO","stk.",10,0,0]
["Pumpeinstallation Miljøklasse B (100-300 l/s) - Mek/EL","stk.",20,0,0]
["Pumpeinstallation Miljøklasse B (100-300 l/s) - SRO","stk.",10,0,0]
["Pumpeinstallation Miljøklasse B (300-600 l/s) - Mek/EL","stk.",20,0,0]
["Pumpeinstallation Miljøklasse B (300-600 l/s) - SRO","stk.",10,0,0]
["Pumpeinstallation Miljøklasse B (600-1.000 l/s) - Mek/EL","stk.",20,0,0]
["Pumpeinstallation Miljøklasse B (600-1.000 l/s) - SRO","stk.",10,0,0]
["Pumpeinstallation Miljøklasse B (1.000-1.500 l/s) - Mek/EL","stk.",20,0,0]
["Pumpeinstallation Miljøklasse B (1.000-1.500 l/s) - SRO","stk.",10,0,0]
["Overbygning","m2",75,0,0]
["Overløbsbygværker - Land",null,null,0,0]
["Kælder (< 7 m2) ","stk.",75,7,7]
["Kælder (7 - 20 m2) ","m2",75,0,0]
["Kælder (20 - 30 m2)","m2",75,0,0]
["Installationer \"ingen eller faste riste\" (mindre end 7 m2)","stk.",20,7,7]
["Installationer \"mekaniske riste og SRO\" Miljøklasse A. (7-20 m2) - Mek/EL","stk.",20,0,0]
["Installationer \"mekaniske riste og SRO\" Miljøklasse A. (7-20 m2) - SRO","stk.",10,0,{"$f":"+D197","v":0}]
["Installationer \"mekaniske riste og SRO\" Miljøklasse A. (20-30 m2) - Mek/EL","stk.",20,0,0]
["Installationer \"mekaniske riste og SRO\" Miljøklasse A. (20-30 m2) - SRO","stk.",10,0,0]
["Installationer \"mekaniske riste og SRO\" Miljøklasse B. (7-20 m2) - Mek/EL","stk.",20,0,0]
["Installationer \"mekaniske riste og SRO\" Miljøklasse B. (7-20 m2) - SRO","stk.",10,0,0]
["Installationer \"mekaniske riste og SRO\" Miljøklasse B. (20-30 m2) - Mek/EL","stk.",20,0,0]
["Installationer \"mekaniske riste og SRO\" Miljøklasse B. (20-30 m2) - SRO","stk.",10,0,0]
["Overbygning","stk.",75,0,0]
["Overløbsbygværker - By",null,null,0,0]
["Kælder (< 7 m2) ","stk.",75,32,32]
["Kælder (7 - 20 m2) ","m2",75,4,4]
["Kælder (20 - 30 m2)","m2",75,1,1]
["Installationer \"ingen eller faste riste\" (mindre end 7 m2)","stk.",20,32,32]
["Installationer \"mekaniske riste og SRO\" Miljøklasse A. (7-20 m2) - Mek/EL","stk.",20,0,0]
["Installationer \"mekaniske riste og SRO\" Miljøklasse A. (7-20 m2) - SRO","stk.",10,0,0]
["Installationer \"mekaniske riste og SRO\" Miljøklasse A. (20-30 m2) - Mek/EL","stk.",20,0,0]
["Installationer \"mekaniske riste og SRO\" Miljøklasse A. (20-30 m2) - SRO","stk.",10,0,0]
["Installationer \"mekaniske riste og SRO\" Miljøklasse B. (7-20 m2) - Mek/EL","stk.",20,5,5]
["Installationer \"mekaniske riste og SRO\" Miljøklasse B. (7-20 m2) - SRO","stk.",10,0,0]
["Installationer \"mekaniske riste og SRO\" Miljøklasse B. (20-30 m2) - Mek/EL","stk.",20,0,0]
["Installationer \"mekaniske riste og SRO\" Miljøklasse B. (20-30 m2) - SRO","stk.",10,0,0]
["Overbygning","stk.",75,1,1]
["Overløbsbygværker - City",null,null,0,0]
["Kælder (< 7 m2) ","stk.",75,0,0]
["Kælder (7 - 20 m2) ","m2",75,0,0]
["Kælder (20 - 30 m2)","m2",75,0,0]
["Installationer \"ingen eller faste riste\" (mindre end 7 m2)","stk.",20,0,0]
["Installationer \"mekaniske riste og SRO\" Miljøklasse A. (7-20 m2) - Mek/EL","stk.",20,0,0]
["Installationer \"mekaniske riste og SRO\" Miljøklasse A. (7-20 m2) - SRO","stk.",10,0,0]
["Installationer \"mekaniske riste og SRO\" Miljøklasse A. (20-30 m2) - Mek/EL","stk.",20,0,0]
["Installationer \"mekaniske riste og SRO\" Miljøklasse A. (20-30 m2) - SRO","stk.",10,0,0]
["Installationer \"mekaniske riste og SRO\" Miljøklasse B. (7-20 m2) - Mek/EL","stk.",20,0,0]
["Installationer \"mekaniske riste og SRO\" Miljøklasse B. (7-20 m2) - SRO","stk.",10,0,0]
["Installationer \"mekaniske riste og SRO\" Miljøklasse B. (20-30 m2) - Mek/EL","stk.",20,0,0]
["Installationer \"mekaniske riste og SRO\" Miljøklasse B. (20-30 m2) - SRO","stk.",10,0,0]
["Overbygning (efter beliggenhed) ","stk.",75,0,0]
["Overløbsbygværker - Indre city",null,null,0,0]
["Kælder (< 7 m2) ","stk.",75,0,0]
["Kælder (7 - 20 m2) ","m2",75,0,0]
["Kælder (20 - 30 m2)","m2",75,0,0]
["Installationer \"ingen eller faste riste\" (mindre end 7 m2)","stk.",20,0,0]
["Installationer \"mekaniske riste og SRO\" Miljøklasse A. (7-20 m2) - Mek/EL","stk.",20,0,0]
["Installationer \"mekaniske riste og SRO\" Miljøklasse A. (7-20 m2) - SRO","stk.",10,0,0]
["Installationer \"mekaniske riste og SRO\" Miljøklasse A. (20-30 m2) - Mek/EL","stk.",20,0,0]
["Installationer \"mekaniske riste og SRO\" Miljøklasse A. (20-30 m2) - SRO","stk.",10,0,0]
["Installationer \"mekaniske riste og SRO\" Miljøklasse B. (7-20 m2) - Mek/EL","stk.",20,0,0]
["Installationer \"mekaniske riste og SRO\" Miljøklasse B. (7-20 m2) - SRO","stk.",10,0,0]
["Installationer \"mekaniske riste og SRO\" Miljøklasse B. (20-30 m2) - Mek/EL","stk.",20,0,0]
["Installationer \"mekaniske riste og SRO\" Miljøklasse B. (20-30 m2) - SRO","stk.",10,0,0]
["Overbygning","stk.",75,0,0]
["Forsinkelsesbassiner - Land",null,null,0,0]
["Forsinkelsesbassiner, lukkede uden automatisk rensning og SRO Miljøklasse B (mindre end 1.000 m3)","m³",50,1630,1630]
["Forsinkelsesbassiner, lukkede med automatisk rensning og SRO Miljøklasse A (500-1.000 m3) - Konstruktioner","m³",75,0,0]
["Forsinkelsesbassiner, lukkede med automatisk rensning og SRO Miljøklasse A (500-1.000 m3) - Mek/EL","m³",20,0,0]
["Forsinkelsesbassiner, lukkede med automatisk rensning og SRO Miljøklasse A (500-1.000 m3) - SRO ","m³",10,0,0]
["Forsinkelsesbassiner, lukkede med automatisk rensning og SRO Miljøklasse A (1.000-3.000 m3) - Konstruktioner","m³",75,0,0]
["Forsinkelsesbassiner, lukkede med automatisk rensning og SRO Miljøklasse A (1.000-3.000 m3) - Mek/EL","m³",20,0,0]
["Forsinkelsesbassiner, lukkede med automatisk rensning og SRO Miljøklasse A (1.000-3.000 m3) - SRO","m³",10,0,0]
["Forsinkelsesbassiner, lukkede med automatisk rensning og SRO Miljøklasse A (5.000-10.000 m3) - Konstruktionre","m³",75,0,0]
["Forsinkelsesbassiner, lukkede med automatisk rensning og SRO Miljøklasse A (5.000-10.000 m3) - Mek/EL","m³",20,0,0]
["Forsinkelsesbassiner, lukkede med automatisk rensning og SRO Miljøklasse A (5.000-10.000 m3) - SRO","m³",10,0,0]
["Forsinkelsesbassiner, lukkede med automatisk rensning og SRO Miljøklasse A (større end 10.000 m3) - Konstruktioner","m³",75,0,0]
["Forsinkelsesbassiner, lukkede med automatisk rensning og SRO Miljøklasse A (større end 10.000 m3) - Mek/EL","m³",20,0,0]
["Forsinkelsesbassiner, lukkede med automatisk rensning og SRO Miljøklasse A (større end 10.000 m3) - SRO","m³",10,0,0]
["Forsinkelsesbassiner - By",null,null,0,{"$f":"+D261","v":0}]
["Forsinkelsesbassiner, lukkede uden automatisk rensning og SRO Miljøklasse B (mindre end 1.000 m3)","m³",50,1410,1410]
["Forsinkelsesbassiner, lukkede med automatisk rensning og SRO Miljøklasse A (500-1.000 m3) - Konstruktioner","m³",75,3050,3050]
["Forsinkelsesbassiner, lukkede med automatisk rensning og SRO Miljøklasse A (500-1.000 m3) - Mek/EL","m³",20,3050,3050]
["Forsinkelsesbassiner, lukkede med automatisk rensning og SRO Miljøklasse A (500-1.000 m3) - SRO ","m³",10,3050,3050]
["Forsinkelsesbassiner, lukkede med automatisk rensning og SRO Miljøklasse A (1.000-3.000 m3) - Konstruktioner","m³",75,1150,1150]
["Forsinkelsesbassiner, lukkede med automatisk rensning og SRO Miljøklasse A (1.000-3.000 m3) - Mek/EL","m³",20,1150,1150]
["Forsinkelsesbassiner, lukkede med automatisk rensning og SRO Miljøklasse A (1.000-3.000 m3) - SRO","m³",10,1150,1150]
["Forsinkelsesbassiner, lukkede med automatisk rensning og SRO Miljøklasse A (5.000-10.000 m3) - Konstruktionre","m³",75,0,0]
["Forsinkelsesbassiner, lukkede med automatisk rensning og SRO Miljøklasse A (5.000-10.000 m3) - Mek/EL","m³",20,7900,7900]
["Forsinkelsesbassiner, lukkede med automatisk rensning og SRO Miljøklasse A (5.000-10.000 m3) - SRO","m³",10,0,0]
["Forsinkelsesbassiner, lukkede med automatisk rensning og SRO Miljøklasse A (større end 10.000 m3) - Konstruktioner","m³",75,0,0]
["Forsinkelsesbassiner, lukkede med automatisk rensning og SRO Miljøklasse A (større end 10.000 m3) - Mek/EL","m³",20,0,0]
["Forsinkelsesbassiner, lukkede med automatisk rensning og SRO Miljøklasse A (større end 10.000 m3) - SRO","m³",10,0,0]
["Forsinkelsesbassiner - City",null,null,0,0]
["Forsinkelsesbassiner, lukkede uden automatisk rensning og SRO Miljøklasse B (mindre end 1.000 m3)","m³",50,0,0]
["Forsinkelsesbassiner, lukkede med automatisk rensning og SRO Miljøklasse A (500-1.000 m3) - Konstruktioner","m³",75,0,0]
["Forsinkelsesbassiner, lukkede med automatisk rensning og SRO Miljøklasse A (500-1.000 m3) - Mek/EL","m³",20,0,0]
["Forsinkelsesbassiner, lukkede med automatisk rensning og SRO Miljøklasse A (500-1.000 m3) - SRO ","m³",10,0,0]
["Forsinkelsesbassiner, lukkede med automatisk rensning og SRO Miljøklasse A (1.000-3.000 m3) - Konstruktioner","m³",75,0,0]
["Forsinkelsesbassiner, lukkede med automatisk rensning og SRO Miljøklasse A (1.000-3.000 m3) - Mek/EL","m³",20,0,0]
["Forsinkelsesbassiner, lukkede med automatisk rensning og SRO Miljøklasse A (1.000-3.000 m3) - SRO","m³",10,0,0]
["Forsinkelsesbassiner, lukkede med automatisk rensning og SRO Miljøklasse A (5.000-10.000 m3) - Konstruktionre","m³",75,0,0]
["Forsinkelsesbassiner, lukkede med automatisk rensning og SRO Miljøklasse A (5.000-10.000 m3) - Mek/EL","m³",20,0,0]
["Forsinkelsesbassiner, lukkede med automatisk rensning og SRO Miljøklasse A (5.000-10.000 m3) - SRO","m³",10,0,0]
["Forsinkelsesbassiner, lukkede med automatisk rensning og SRO Miljøklasse A (større end 10.000 m3) - Konstruktioner","m³",75,0,0]
["Forsinkelsesbassiner, lukkede med automatisk rensning og SRO Miljøklasse A (større end 10.000 m3) - Mek/EL","m³",20,0,0]
["Forsinkelsesbassiner, lukkede med automatisk rensning og SRO Miljøklasse A (større end 10.000 m3) - SRO","m³",10,0,0]
["Forsinkelsesbassiner - Indre city",null,null,0,0]
["Forsinkelsesbassiner, lukkede uden automatisk rensning og SRO Miljøklasse B (mindre end 1.000 m3)","m³",50,0,0]
["Forsinkelsesbassiner, lukkede med automatisk rensning og SRO Miljøklasse A (500-1.000 m3) - Konstruktioner","m³",75,0,0]
["Forsinkelsesbassiner, lukkede med automatisk rensning og SRO Miljøklasse A (500-1.000 m3) - Mek/EL","m³",20,0,0]
["Forsinkelsesbassiner, lukkede med automatisk rensning og SRO Miljøklasse A (500-1.000 m3) - SRO ","m³",10,0,0]
["Forsinkelsesbassiner, lukkede med automatisk rensning og SRO Miljøklasse A (1.000-3.000 m3) - Konstruktioner","m³",75,0,0]
["Forsinkelsesbassiner, lukkede med automatisk rensning og SRO Miljøklasse A (1.000-3.000 m3) - Mek/EL","m³",20,0,0]
["Forsinkelsesbassiner, lukkede med automatisk rensning og SRO Miljøklasse A (1.000-3.000 m3) - SRO","m³",10,0,0]
["Forsinkelsesbassiner, lukkede med automatisk rensning og SRO Miljøklasse A (5.000-10.000 m3) - Konstruktionre","m³",75,0,0]
["Forsinkelsesbassiner, lukkede med automatisk rensning og SRO Miljøklasse A (5.000-10.000 m3) - Mek/EL","m³",20,0,0]
["Forsinkelsesbassiner, lukkede med automatisk rensning og SRO Miljøklasse A (5.000-10.000 m3) - SRO","m³",10,0,0]
["Forsinkelsesbassiner, lukkede med automatisk rensning og SRO Miljøklasse A (større end 10.000 m3) - Konstruktioner","m³",75,0,0]
["Forsinkelsesbassiner, lukkede med automatisk rensning og SRO Miljøklasse A (større end 10.000 m3) - Mek/EL","m³",20,0,0]
["Forsinkelsesbassiner, lukkede med automatisk rensning og SRO Miljøklasse A (større end 10.000 m3) - SRO","m³",10,0,0]
["Sparebassin/laguner - Land",null,null,0,0]
["Jordbassin Klasse B","m³",50,26060,{"$f":"+D304+40","v":26100}]
["Jordbassin Klasse A","m³",50,0,0]
["Indløb-/udløbsarrangement","stk.",75,10,{"$f":"+D306+1","v":11}]
["Andre bygninger (tekniske installationer, målere mv.)","m2",75,0,0]
["Sparebassin/laguner - By",null,null,0,0]
["Jordbassin Klasse B","m³",50,96700,96700]
["Jordbassin Klasse A","m³",50,6900,6900]
["Indløb-/udløbsarrangement","stk.",75,24,24]
["Andre bygninger (tekniske installationer, målere mv.)","m2",75,0,0]
["Sparebassin/laguner - City",null,null,0,0]
["Jordbassin Klasse B","m³",50,0,0]
["Jordbassin Klasse A","m³",50,0,0]
["Indløb-/udløbsarrangement","stk.",75,0,0]
["Andre bygninger (tekniske installationer, målere mv.)","m2",75,0,0]
["Sparebassin/laguner  - Indre city",null,null,0,0]
["Jordbassin Klasse B","m³",50,0,0]
["Jordbassin Klasse A","m³",50,0,0]
["Indløb-/udløbsarrangement","stk.",75,0,0]
["Andre bygninger (tekniske installationer, målere mv.)","m2",75,0,0]

{"sheet":"Fællesfunktionsanlæg","index":2,"n_rows":16,"n_cols":6,"rows_kept":16,"cut":false,"hidden":false,"merged":[[0,5,1,5],[0,0,1,0],[0,1,1,1],[0,2,1,2],[0,3,1,3],[0,4,1,4]]}
["Fællesfunktionsanlæg","Enhed","Standard-levetid","Samlet mængde per 31/12-2014","Samlet mængde per 31/12-2015","Bemærk-ninger"]
[]
[]
["Andre"]
["Administrationbygninger","m2",75,1621,{"$f":"+D5","v":1621}]
["Arbejdsplads og kontor","stk.",5,20,{"$f":"+D6","v":20}]
["Køretøjer, personbil","stk.",5,0,{"$f":"+D7","v":0}]
["Køretøjer, små lastvogne (< 3.500 kg.)","stk.",5,11,{"$f":"+D8+1","v":12}]
["Køretøjer, store lastvogne (> 3.500 kg.)","stk.",5,1,1]
["Køretøjer, entreprenørmaskiner","stk.",5,7,7]
["Slamsugere","stk.",5,0,0]
["Værksteder, garager","m2",75,1500,{"$f":"+D12+100","v":1600}]
["Øvrige"]
["Solcelleanlæg","KWh",25,0]
["EDB, tablets og navigationsudstyr","stk.",5,0]
["Elektroniske kort","stk.",5,0]

{"sheet":"Drop downliste","index":3,"n_rows":13,"n_cols":11,"rows_kept":13,"cut":false,"hidden":false,"merged":[]}
[]
[null,"datakvalitet","Serviceselskab","Overheads","Infrastrukturomlægninger","Infrastruktur per år","år 1","år 2","år 3","år 4","år 5"]
[null,null,null,null,null,null,2010,2011,2012,2013,2014]
[null,1,"ja","Full-cost","ja",0.1]
[null,2,"nej","Direct-cost","nej",0.2]
[null,3,null,"Nøgletalsfordeling",null,0.3]
[null,null,null,"Activity based cost",null,0.4]
[null,null,null,"Andet",null,0.5]
[null,null,null,null,null,0.6]
[null,null,null,null,null,0.7]
[null,null,null,null,null,0.8]
[null,null,null,null,null,0.9]
[null,null,null,null,null,1]